Cogmind - Beta 13 @@@ ROGUE MODE // 2024.05.09 @ 06:57:15 Player: Wyvric Result: Destroyed by G-67 Veteran with Field Laser Performance ------------- Evolutions (6) 3000 Regions Visited (19) 3800 Robots Destroyed (240) 1200 Value Destroyed (10001) 10001 Prototype IDs (39) 780 Alien Tech Used (0) 0 Bonus (4427) 4427 TOTAL SCORE: 23208 Bonus ------- High Alert Combat Kills 844 Follower Combat Kills 521 Network Hubs Disabled 1000 Met Zhirov 300 Met Warlord at Base 500 MAIN.C Attacked Warlord 500 Warlord Defense Kills 468 Met R17 at Cetus 500 Read Decrypted Archives 300 Friendly Fire -506 Cogmind --------- Core Integrity 0/1150 Matter 64/300 Energy 99/100 System Corruption 6% Temperature Cool (9) Movement Core (50) Location -4/Armory Parts ------- > --- POWER (1) -------- (None) > --- PROPULSION (6) --- (None) > --- UTILITY (8) ------ Makeshift Terrain Scan Processor Ghost Barrier > --- WEAPON (4) ------- (None) > --- INVENTORY (5) ---- Long-range Sensor Array Quantum Capacitor Advanced Remote Shield Vortex Lance (26) Peak State ------------ > --- POWER ------------ Vortex-Antimatter Reactor > --- PROPULSION ------- Hovering Biometal-Impulse Exoskeleton Combat Linear Gravjet Combat Linear Gravjet > --- UTILITY ---------- Armored Scrap Engine Huge Storage Unit Advanced Signal Interpreter Makeshift Terrain Scan Processor Advanced Targeting Computer Centrium Medium Armor Plating Ghost Barrier > --- WEAPON ----------- Vortex Shotgun Neutron Missile Launcher Shotgun Thermal Construct/G Vortex Lance > --- INVENTORY -------- Micro Fission Core Centrium Wheel Improved Heat Sink Advanced Coolant Injector Long-range Sensor Array Long-range Sensor Array Advanced Terrain Scanner Weapon Mount Quantum Capacitor Advanced Transmission Jammer Centrium Medium Armor Plating Makeshift Ablative Armor Makeshift Ablative Armor Improved Powered Armor Advanced Remote Shield Component Analysis Suite Advanced System Restoration Module Long-range Tractor Beam Advanced Drone Bay Vortex Shotgun Vortex Catalyst Activator Vortex Lance [Rating: 156] Favorites ----------- Power Constructs Engine Light Deuterium Engine Power Core Light Nuclear Core Reactor Constructs Propulsion Constructs Treads Light Treads Leg Aluminum Leg Wheel Compact Wheel Hover Unit Constructs Flight Unit Nuclear Pulse Thruster Utility Huge Storage Unit Device Armored Scrap Engine Storage Huge Storage Unit Processor Advanced Signal Interpreter Hackware Ghost Barrier Protection Weapon Shielding Weapon Constructs Energy Gun Constructs Energy Cannon Heavy Particle Cannon Ballistic Gun Heavy Assault Rifle Ballistic Cannon Heavy Flak Cannon Launcher Grenade Launcher Special Weapon Plasma Cutter Slashing Weapon Makeshift Sword Piercing Weapon Vortex Lance Build | -11 -10 -10 -9 -9 -8 -8 -8 -6 -6 -6 -6 -6 -5 -5 -5 -5 -4 -4 -4 ------- Run | Yrd Mat Min Mat Min Mat Sto Rec Fac Ext Cet Arc Hub Fac Upp Upp War Pro Fac Arm Slots Evolved 12 | . . . 2 . 2 . . 4 . . . . 2 . . . . 2 . Power . | . . . . . . . . . . . . . . . . . . . . Propulsion 4 | . . . . . . . . 4 . . . . . . . . . . . Utility 6 | . . . 2 . . . . . . . . . 2 . . . . 2 . Weapon 2 | . . . . . 2 . . . . . . . . . . . . . . Parts Attached 252 | 6 10 11 18 10 5 20 7 17 26 9 2 6 20 8 8 12 8 14 35 Power 5 | 1 . 1 1 . . 2 . . . . . . . . . . . . . Engine 4 | 1 . 1 . . . 2 . . . . . . . . . . . . . Core 1 | . . . 1 . . . . . . . . . . . . . . . . Reactor . | . . . . . . . . . . . . . . . . . . . . Propulsion 59 | 2 2 4 5 4 4 8 . 8 5 3 1 . 3 . . 4 . 2 4 Treads 17 | . . 2 2 2 2 7 . . . 1 1 . . . . . . . . Leg 18 | 2 2 . 3 2 . . . . 4 2 . . 1 . . 2 . . . Wheel 9 | . . 2 . . 2 1 . 4 . . . . . . . . . . . Hover 12 | . . . . . . . . 4 1 . . . 2 . . . . 2 3 Flight 3 | . . . . . . . . . . . . . . . . 2 . . 1 Utility 121 | 1 4 3 7 4 1 3 4 4 5 1 1 4 17 8 8 8 8 12 18 Device 82 | . . 1 2 3 . 1 3 2 4 1 . 2 14 8 7 8 8 8 10 Storage 7 | 1 2 . 1 . 1 . 1 . 1 . . . . . . . . . . Processor 5 | . . . . . . . . 1 . . . . 2 . 1 . . . 1 Hackware 3 | . . . . . . . . 1 . . . . 1 . . . . . 1 Protection 24 | . 2 2 4 1 . 2 . . . . 1 2 . . . . . 4 6 Artifact . | . . . . . . . . . . . . . . . . . . . . Weapon 67 | 2 4 3 5 2 . 7 3 5 16 5 . 2 . . . . . . 13 Energy Gun 25 | 2 2 2 3 . . 2 . 1 7 2 . . . . . . . . 4 Energy Cannon 3 | . . . . . . 1 2 . . . . . . . . . . . . Ballistic Gun 19 | . 1 . 2 2 . 3 . 2 5 2 . . . . . . . . 2 Ballistic Cannon 2 | . . . . . . . . 2 . . . . . . . . . . . Launcher 8 | . 1 1 . . . . . . 2 . . 1 . . . . . . 3 Special Weapon 4 | . . . . . . . . . 2 1 . 1 . . . . . . . Impact Weapon . | . . . . . . . . . . . . . . . . . . . . Slashing Weapon 2 | . . . . . . 1 1 . . . . . . . . . . . . Piercing Weapon 4 | . . . . . . . . . . . . . . . . . . . 4 Special Melee Weapon . | . . . . . . . . . . . . . . . . . . . . Unidentified Prototypes 10 | . 1 . . 1 . . . . . 3 1 . . 1 . 2 . . 1 Parts Lost 44 | . 1 7 5 . . 5 . 1 1 . . 1 . . . . . 4 19 Power 6 | . . 1 1 . . 1 . . 1 . . . . . . . . 1 1 Propulsion 11 | . . 2 2 . . 1 . . . . . . . . . . . 1 5 Utility 18 | . . 2 2 . . 3 . 1 . . . . . . . . . 2 8 Weapon 9 | . 1 2 . . . . . . . . . 1 . . . . . . 5 Highest Loss Streak 15 | . 1 5 3 . . 2 . 1 1 . . 1 . . . . . 3 15 To Critical Strikes 1 | . . . . . . . . . . . . . . . . . . . 1 Average Slot Usage (%) 71 | . 97 94 96 100 81 96 68 69 63 57 58 52 52 58 58 57 58 58 59 Engine 4 | . 14 14 . . . 8 8 6 3 2 . . . . . . . . . Core 1 | . . . 7 11 9 . . . 1 . . . . . . . . . . Reactor 1 | . . . . . . . . . . 3 6 6 5 5 5 5 5 4 3 Treads 2 | . . 2 2 . 12 16 3 . . 3 4 13 9 . . . 1 . . Leg 8 | . 28 20 19 21 3 . . . 15 11 13 . . . 1 12 15 4 . Wheel 1 | . . 2 . . 1 1 7 2 . . . . . . . . . . . Hover 3 | . . . . . . . . 21 4 . . . 1 17 15 2 . 3 7 Device 11 | . . 9 10 11 9 12 14 9 12 13 12 8 12 11 10 11 11 12 8 Storage 7 | . 14 14 11 11 9 9 9 6 6 6 6 6 5 5 5 5 5 5 4 Processor 3 | . . . . . . . . . . . . . 5 11 11 11 11 10 12 Protection 4 | . 11 1 22 22 18 12 . . . . . 4 . . . . . 5 2 Energy Gun 4 | . 14 7 15 8 . 3 4 1 4 7 . . . . . . . . 2 Energy Cannon 1 | . . . . . . . 2 4 . 3 . . 3 . 4 5 4 5 2 Ballistic Gun 7 | . 12 . 6 13 18 31 14 2 6 1 6 1 . . . . . . . Ballistic Cannon 1 | . . . . . . . . 7 5 2 6 6 1 5 . . . . . Naked Turns . | . . . . . . . . . . . . . . . . . . . . Heaviest Build 146 | 14 54 56 65 60 100 106 100 68 110 110 115 117 115 115 113 116 117 131 146 Greatest Support 188 | 20 26 40 40 40 40 42 42 86 107 132 172 188 188 132 132 138 138 114 95 Greatest Overweight (x) 6 | . 2 3 2 2 3 6 6 2 2 1 . . . . . 1 1 1 3 Average Overweight (x) . | . 1 1 1 1 2 2 3 . . . . . . . . . . . 1 Largest Inventory Capacity 25 | 8 20 20 20 20 25 25 25 20 25 25 25 25 25 25 25 25 25 25 25 Average Capacity 23 | 6 19 20 20 20 24 25 24 20 24 25 25 25 25 25 25 25 25 25 24 Most Carried 25 | 6 20 20 20 20 23 25 25 20 25 25 25 25 25 25 25 25 25 25 25 Average Carried 22 | 4 15 17 17 19 21 24 23 19 22 24 24 24 24 24 24 24 24 24 22 Final Capacity 25 | 8 20 20 20 20 25 25 20 20 25 25 25 25 25 25 25 25 25 25 5 Final Carried 25 | 6 20 14 20 20 23 24 20 20 24 25 25 25 25 25 24 25 24 25 5 Scrap Engine Consumption 244 | . . . . . . . 77 18 49 22 2 10 12 12 3 9 7 11 12 Constructs Created 7 | . . . . . . . 3 . 1 . . 1 . . . . . . 2 Constructs Modified 96 | . . . . . . . 25 9 24 7 5 1 5 . 5 . 10 2 3 Class Distribution -------------------- 59% | Construct 13% | Mutant 8% | Scavenger-Mutant 5% | Scavenger-Tank 3% | Commander-Construct 3% | Gunner Dominant Class ---------------- Mutant | -10/Materials Mutant | -10/Mines Mutant | -9/Materials Scavenger-Mutant | -9/Mines Scavenger-Mutant | -8/Materials Scavenger-Tank | -8/Storage Construct | -8/Recycling Construct | -6/Factory Construct | -6/Extension Construct | -6/Cetus Scavenger-Construct | -6/Archives Construct | -6/Hub_04(d) Construct | -5/Factory Construct | -5/Upper Caves Construct | -5/Upper Caves Construct | -5/Warlord Construct | -4/Proximity Caves Construct | -4/Factory Hacker-Mutant | -4/Armory Resources | -11 -10 -10 -9 -9 -8 -8 -8 -6 -6 -6 -6 -6 -5 -5 -5 -5 -4 -4 -4 ----------- Run | Yrd Mat Min Mat Min Mat Sto Rec Fac Ext Cet Arc Hub Fac Upp Upp War Pro Fac Arm Matter Collected 4349 | 157 281 95 300 24 . 567 461 192 1037 193 10 69 117 160 50 150 132 174 180 Remotely 65 | . . . . . . . . . . . . . . . . . . . 65 Salvage Created 11296 | . 504 39 469 . . 797 2668 190 1326 550 32 313 450 731 397 210 811 1250 559 Parts 498 | . 39 3 26 . . 48 97 11 43 30 3 18 22 28 13 11 39 43 24 Haulers Intercepted 2 | . . . . . . . 1 . . . . . . 1 . . . . . Recyclers Shooed 13 | . . . 1 . . . 9 . 3 . . . . . . . . . . Parts Field Recycled . | . . . . . . . . . . . . . . . . . . . . Retrieved Matter . | . . . . . . . . . . . . . . . . . . . . Parts Self-Destructed 74 | . . . . . . . . . . . . . . 24 13 . 37 . . Prevented 2 | . . . . . . . . . . . . . . 2 . . . . . Kills | -11 -10 -10 -9 -9 -8 -8 -8 -6 -6 -6 -6 -6 -5 -5 -5 -5 -4 -4 -4 ------- Run | Yrd Mat Min Mat Min Mat Sto Rec Fac Ext Cet Arc Hub Fac Upp Upp War Pro Fac Arm Combat Hostiles Destroyed 198 | . 13 8 12 . . 16 19 3 22 9 . 5 7 10 7 4 17 21 25 Melee 17 | . . . . . . . 12 . . . . 1 . . . . . . 4 Guns 64 | . 11 1 12 . . 16 7 . 13 2 . . . . . . . . 2 Cannons 75 | . . . . . . . . 3 6 2 . 4 7 10 7 4 17 15 . AOE 36 | . 2 7 . . . . . . 3 . . . . . . . . 5 19 Classes Destroyed 22 | . 5 1 2 . . 1 6 . 1 . . 1 . 1 . . 1 . 3 Worker 10 | . 3 . . . . . 2 2 . . . 2 . . . . . 1 . Builder 2 | . . . . . . . 2 . . . . . . . . . . . . Tunneler 1 | . . . . . . . 1 . . . . . . . . . . . . Hauler 2 | . . . . . . . 1 . . . . . . 1 . . . . . Recycler 20 | . . . 1 . . . 16 . 3 . . . . . . . . . . Operator 4 | . 1 . . . . . . . . . . . 2 . . . . . 1 Watcher 4 | . 2 . . . . 1 . . . 1 . . . . . . . . . Swarmer 44 | . 3 3 4 . . 2 1 . 7 3 . . . . . . 11 5 5 Cutter 1 | . . . . . . . . . . . . . . . . . . . 1 Saboteur 6 | . . . . . . . . . . . . . . . . . . . 6 Grunt 74 | . 10 2 7 . . 6 3 . 10 . . 2 3 8 6 . 4 9 4 Brawler 5 | . . . . . . . . . 2 . . 1 1 1 . . . . . Duelist 3 | . . . . . . 1 1 . . . . . . . 1 . . . . Protector 4 | . . . . . . . 2 . . . . . . . . 2 . . . Sentry 31 | . . . 1 . . 7 7 3 4 . . 1 . . . . 1 5 2 Demolisher 3 | . . . . . . . 2 . . . . . . . . 1 . . . Specialist 5 | . . . . . . . . . . . . . . . . . . . 5 Hunter 7 | . . . . . . . . . . . . 1 2 . . 1 . 2 1 Programmer 5 | . . . . . . . 3 . . . . . 1 . . . . . 1 Behemoth 2 | . . . . . . . . . . . . . . 1 . . 1 . . Cetus Guard 6 | . . . . . . . . . . 6 . . . . . . . . . Samaritan 1 | . . . . . . . . . . . . . . . . . 1 . . Assembled 3 | . . 3 . . . . . . . . . . . . . . . . . Butcher 1 | . . . . . . . . . 1 . . . . . . . . . . Best Kill Streak 17 | . 4 3 4 . . 4 4 2 5 4 . 3 2 6 4 3 5 8 17 Combat Bots Only 16 | . 3 3 3 . . 4 4 1 5 4 . 2 2 5 4 3 5 7 16 Max Kills in Single Turn 4 | . 2 2 1 . . 2 1 1 2 1 . 2 1 2 1 1 1 3 4 Gunslinging 1 | . 1 . . . . 1 . . . . . . . . . . . . . Exploded 4 | . 1 2 . . . . . . 1 . . . . . . . . 3 4 Melee 1 | . . . . . . . 1 . . . . 1 . . . . . . 1 Uniques/NPCs Destroyed . | . . . . . . . . . . . . . . . . . . . . Combat | -11 -10 -10 -9 -9 -8 -8 -8 -6 -6 -6 -6 -6 -5 -5 -5 -5 -4 -4 -4 -------- Run | Yrd Mat Min Mat Min Mat Sto Rec Fac Ext Cet Arc Hub Fac Upp Upp War Pro Fac Arm Hostile Shots Fired 1996 | . 63 48 75 . 8 62 39 123 239 33 . 117 50 11 24 24 114 245 721 Missed 696 | . 9 12 14 . 2 13 13 59 87 10 . 41 9 5 4 7 32 109 270 Damage Taken 20493 | . 604 831 612 . 95 700 389 484 1763 523 . 2039 846 132 400 351 1303 2728 6693 Core 2291 | . 110 108 37 . . 35 62 45 158 32 . 213 52 16 55 34 175 169 990 Absorbed by Shields 374 | . . . . . . . . . 5 . . . . . . . . . 369 Redirected to Shielding 105 | . 7 . 3 . 5 90 . . . . . . . . . . . . . Regen/Repaired (Parts) 4562 | . . . . . . . 127 132 549 371 99 553 1141 23 423 28 756 228 132 Core Remaining (%) 66 | 100 . 12 . 90 . . 82 . . . . 47 . . . . 66 . . Volleys Fired 410 | . 39 10 34 . . 32 45 9 52 21 1 12 23 23 13 8 40 30 18 Largest 4 | . 2 2 2 . . 4 4 4 4 3 1 1 1 1 1 1 1 1 1 Hottest 294 | . 76 112 112 . . 167 157 214 255 294 133 133 177 111 111 140 279 279 60 Shots Fired 795 | . 75 20 66 . . 115 136 24 132 59 1 12 23 23 13 8 40 30 18 Gun 551 | . 72 8 66 . . 115 132 7 103 40 . . . . . . . . 8 Cannon 214 | . . . . . . . 4 17 25 19 1 11 23 23 13 8 40 30 . Launcher 30 | . 3 12 . . . . . . 4 . . 1 . . . . . . 10 Special . | . . . . . . . . . . . . . . . . . . . . Kinetic 422 | . 36 . 10 . . 102 101 16 101 18 . . 2 23 7 . 6 . . Thermal 253 | . 20 8 56 . . 13 35 8 11 . 1 11 21 . 6 8 34 21 . Explosive 27 | . 3 12 . . . . . . 4 . . 1 . . . . . . 7 Electromagnetic 82 | . 16 . . . . . . . 16 41 . . . . . . . 9 . Entropic 11 | . . . . . . . . . . . . . . . . . . . 11 Robot Hit Streak 24 | . 7 3 12 . . 15 11 6 10 13 3 6 12 24 10 18 20 13 7 Robot Miss Streak 10 | . 6 3 5 . . 4 3 2 10 6 . 2 3 1 1 3 7 5 6 Penetration Max 2 | . . . . . . . . . 2 . . . . 1 . . . . . Secondary Targets 5 | . 1 . . . . 3 . . 1 . . . . . . . . . . Max Gunslinging Chain 1 | . 1 . . . . 1 . . 1 . . . . . . . . . . Shots Hit Robots 604 | . 47 8 47 . . 76 135 18 89 35 1 10 16 23 12 6 37 26 18 Core Hits 412 | . 29 14 17 . . 35 44 8 91 19 1 15 8 15 7 6 23 39 41 Critical Kills 2 | . . . . . . . . . . . . . . 1 1 . . . . Critical Parts Destroyed 5 | . . . . . . 1 1 . 1 1 . . . . 1 . . . . Critical Strikes 23 | . 3 . . . . 2 3 3 2 2 . . . 1 2 1 1 . 3 Burn 3 | . 2 . . . . 1 . . . . . . . . . . . . . Destroy 9 | . . . . . . 1 1 . 1 1 . . . 1 2 1 1 . . Blast 4 | . . . . . . . . 3 1 . . . . . . . . . . Corrupt 2 | . 1 . . . . . . . . 1 . . . . . . . . . Sever 2 | . . . . . . . 2 . . . . . . . . . . . . Sunder 3 | . . . . . . . . . . . . . . . . . . . 3 Melee Attacks 82 | . . . . . . 1 56 3 . . . . . . . . . . 22 Impact . | . . . . . . . . . . . . . . . . . . . . Slashing 60 | . . . . . . 1 56 3 . . . . . . . . . . . Piercing . | . . . . . . . . . . . . . . . . . . . . Entropic 22 | . . . . . . . . . . . . . . . . . . . 22 Sneak Attacks 32 | . . . . . . . 30 2 . . . . . . . . . . . Combat Hostiles 19 | . . . . . . . 19 . . . . . . . . . . . . Follow-up Attacks 2 | . . . . . . . . . . . . . . . . . . . 2 Damage Inflicted 31593 | . 1027 768 774 10 . 1211 4775 530 2718 922 61 1417 1285 2303 921 561 2742 4157 5411 Guns 6316 | . 756 88 774 . . 1200 1284 53 1377 484 . . . . . . . . 300 Cannons 13451 | . . . . . . . 31 332 571 375 61 1003 1283 2303 921 561 2742 3268 . Explosions 7293 | . 263 676 . . . . . . 754 63 . 309 . . . . . 889 4339 Melee 4324 | . . . . . . . 3455 145 . . . . . . . . . . 724 Ramming 209 | . 8 4 . 10 . 11 5 . 16 . . 105 2 . . . . . 48 Kinetic 7759 | . 326 . 48 . . 1067 987 276 1684 207 . . 45 2303 497 . 319 . . Thermal 10627 | . 310 88 726 . . 133 328 109 433 63 61 1003 1238 . 424 561 2423 2654 73 Explosive 3218 | . 223 676 . . . . . . 449 . . 309 . . . . . 312 1249 Electromagnetic 2139 | . 160 . . . . . . . 136 652 . . . . . . . 1191 . Impact . | . . . . . . . . . . . . . . . . . . . . Slashing 3600 | . . . . . . . 3455 145 . . . . . . . . . . . Piercing . | . . . . . . . . . . . . . . . . . . . . Entropic 4041 | . . . . . . . . . . . . . . . . . . . 4041 Highest Corruption 17 | . . 2 . . . . . . . . . 17 . . . . . 1 6 Average Corruption 1 | . . 2 . . . . . . . . . 4 . . . . . 1 1 Corruption Purged . | . . . . . . . . . . . . . . . . . . . . Corruption Blocked . | . . . . . . . . . . . . . . . . . . . . Effects 10 | . . 1 . . . . . . . . . 2 . . . . . 1 6 Message Errors 3 | . . 1 . . . . . . . . . 2 . . . . . . . Energy Discharges 4 | . . . . . . . . . . . . . . . . . . 1 3 Data Loss (minor) 3 | . . . . . . . . . . . . . . . . . . . 3 Overload Shots . | . . . . . . . . . . . . . . . . . . . . Overflow Damage 2004 | . 18 1 . . . . 1111 . 9 . . 16 85 161 11 . 81 262 249 Projectiles 489 | . . . . . . . 11 . 9 . . . 85 161 11 . 81 131 . Explosions 401 | . 18 1 . . . . . . . . . 16 . . . . . 131 235 Melee 1114 | . . . . . . . 1100 . . . . . . . . . . . 14 Knockbacks 33 | . . . . . . . . . 6 . . 2 . 17 3 . 4 . 1 Impact 3 | . . . . . . . . . . . . 2 . . . . . . 1 Kinetic 27 | . . . . . . . . . 6 . . . . 14 3 . 4 . . Secondary 3 | . . . . . . . . . . . . . . 3 . . . . . Self-Inflicted Damage 473 | . 35 85 . . . 43 2 . 24 . . 71 129 . . . . 60 24 Shots 11 | . 1 3 . . . 1 . . 2 . . 1 2 . . . . 1 . Rammed 15 | . . 1 . . . 1 1 . . . . 8 1 . . . . . 3 Targets Rammed 23 | . 4 1 . 1 . 1 1 . 1 . . 10 1 . . . . . 3 Kicked 6 | . 4 . . 1 . . . . 1 . . . . . . . . . . Crushed 2 | . . . . . . . . . . . . 2 . . . . . . . Highest Temperature 426 | . 324 204 286 . . 260 243 229 292 227 34 196 348 221 257 148 284 426 43 Average Temperature 107 | . 135 76 118 . . 96 63 74 110 124 25 80 96 88 92 71 131 139 19 Received Heat Transfer 3807 | . 270 36 216 . 72 198 99 144 443 . . 421 171 39 207 . 157 693 641 Effects 15 | . . . 5 . . . . . . . . . . . . . 4 6 . Interference 15 | . . . 5 . . . . . . . . . . . . . 4 6 . Siege Activations . | . . . . . . . . . . . . . . . . . . . . Robots Corrupted 6 | . . . . . . . . . . 5 . . . . . . . 1 . Combat Hostiles 6 | . . . . . . . . . . 5 . . . . . . . 1 . Parts Fried 20 | . . . . . . . . . . 6 . . . . . . . 14 . Impact Corruptions . | . . . . . . . . . . . . . . . . . . . . Robots Melted . | . . . . . . . . . . . . . . . . . . . . Combat Hostiles . | . . . . . . . . . . . . . . . . . . . . Parts Melted 24 | . 1 . 3 . . 2 . 1 1 . . . 2 . 2 3 5 4 . Heat Transferred 10541 | . 753 185 1517 . . 370 888 223 409 50 37 535 1000 . 400 370 2035 1669 100 Parts Sabotaged 3 | . . . . . . . . . . . . . . . . . . . 3 Parts Stolen . | . . . . . . . . . . . . . . . . . . . . Parts Stripped . | . . . . . . . . . . . . . . . . . . . . Power Chain Reactions 3 | . 1 . . . . . . . . 1 . . . . . . . . 1 Alert | -11 -10 -10 -9 -9 -8 -8 -8 -6 -6 -6 -6 -6 -5 -5 -5 -5 -4 -4 -4 ------- Run | Yrd Mat Min Mat Min Mat Sto Rec Fac Ext Cet Arc Hub Fac Upp Upp War Pro Fac Arm Peak Influence 1527 | . 260 216 298 83 . 303 338 565 427 293 33 490 320 . . . . 918 1527 Initial 452 | . . 26 60 83 . . 82 391 114 186 13 11 240 . . . . 55 452 Average 167 | . 55 147 192 20 . 149 95 396 217 178 18 137 183 . . . . 377 677 Maximum Alert Level 4 | . 1 1 1 . . 1 1 2 2 1 . 2 1 . . . . 3 4 Low Security (%) 67 | 100 98 96 56 100 100 65 81 . 52 56 100 75 44 . . . . 27 . Level 1 23 | . 1 3 43 . . 34 18 32 44 43 . 7 55 . . . . 28 10 Level 2 7 | . . . . . . . . 67 2 . . 17 . . . . . 34 65 Level 3 . | . . . . . . . . . . . . . . . . . . 10 3 Level 4 . | . . . . . . . . . . . . . . . . . . . 20 Level 5 . | . . . . . . . . . . . . . . . . . . . . High Security . | . . . . . . . . . . . . . . . . . . . . Max Security . | . . . . . . . . . . . . . . . . . . . . Squads Dispatched 27 | . 4 . 1 . . . . 3 1 . . 3 4 . . . . 5 6 Investigation 14 | . 3 . 1 . . . . 2 1 . . 2 1 . . . . 2 2 Extermination 3 | . . . . . . . . 1 . . . . 1 . . . . . 1 Reinforcement 9 | . 1 . . . . . . . . . . . 2 . . . . 3 3 Assault 1 | . . . . . . . . . . . . 1 . . . . . . . Garrison . | . . . . . . . . . . . . . . . . . . . . Intercept . | . . . . . . . . . . . . . . . . . . . . Searches Triggered 2 | . . . . . . . . 1 . . . . . . . . . . 1 Construction Impeded . | . . . . . . . . . . . . . . . . . . . . Haulers Reinforced 1 | . . . . . . . . . . . . . . . . . . 1 . Active Scanning Responses . | . . . . . . . . . . . . . . . . . . . . Cargo Convoy Interrupts . | . . . . . . . . . . . . . . . . . . . . Stealth | -11 -10 -10 -9 -9 -8 -8 -8 -6 -6 -6 -6 -6 -5 -5 -5 -5 -4 -4 -4 --------- Run | Yrd Mat Min Mat Min Mat Sto Rec Fac Ext Cet Arc Hub Fac Upp Upp War Pro Fac Arm Distress Signals 14 | . 1 . . . . 3 . . 2 2 . . . . . . . 1 5 Communications Jammed . | . . . . . . . . . . . . . . . . . . . . Distress Signals . | . . . . . . . . . . . . . . . . . . . . Times Spotted 404 | . 20 25 13 . 3 23 14 6 44 13 . 29 9 10 9 20 26 58 82 Peak Tracking Total 31 | . 3 17 4 . 3 7 5 2 10 5 . 12 4 5 7 13 5 19 31 Tactical Retreats 38 | . . 1 . . . . 4 . 5 . . 2 . . 3 . 9 5 9 Traps | -11 -10 -10 -9 -9 -8 -8 -8 -6 -6 -6 -6 -6 -5 -5 -5 -5 -4 -4 -4 ------- Run | Yrd Mat Min Mat Min Mat Sto Rec Fac Ext Cet Arc Hub Fac Upp Upp War Pro Fac Arm Traps Triggered 9 | . 2 . . . . 1 . . 1 . . 1 3 . . . . 1 . Indirectly 1 | . . . . . . . . . . . . . . . . . . 1 . Trap Hack Attempts . | . . . . . . . . . . . . . . . . . . . . Triggered . | . . . . . . . . . . . . . . . . . . . . Disarmed . | . . . . . . . . . . . . . . . . . . . . Reprogrammed . | . . . . . . . . . . . . . . . . . . . . Reused . | . . . . . . . . . . . . . . . . . . . . Traps Extracted . | . . . . . . . . . . . . . . . . . . . . Installed . | . . . . . . . . . . . . . . . . . . . . Triggered 9 | . . . . . . . . . . . . . . 1 . 8 . . . Machines | -11 -10 -10 -9 -9 -8 -8 -8 -6 -6 -6 -6 -6 -5 -5 -5 -5 -4 -4 -4 ---------- Run | Yrd Mat Min Mat Min Mat Sto Rec Fac Ext Cet Arc Hub Fac Upp Upp War Pro Fac Arm Machines Disabled 37 | . . . 1 . . 1 . . 2 . 1 . 7 . . 2 . 17 6 Max in Single Turn 6 | . . . 1 . . 1 . . 1 . 1 . 5 . . 1 . 6 2 Garrison Access 3 | . . . . . . . . . . . . 2 . . . . . 1 . Network Hub 5 | . . . . . . . . . . . . 5 . . . . . . . Energy Cycler 1 | . . . . . . . . . 1 . . . . . . . . . . Machines Repaired . | . . . . . . . . . . . . . . . . . . . . Machines Dismantled 4 | . . . . . . . . . 2 1 . 1 . . . . . . . Machines Sabotaged 1 | . . . . . . . . . . . . 1 . . . . . . . Overloaded Fab Kills . | . . . . . . . . . . . . . . . . . . . . Hacking | -11 -10 -10 -9 -9 -8 -8 -8 -6 -6 -6 -6 -6 -5 -5 -5 -5 -4 -4 -4 --------- Run | Yrd Mat Min Mat Min Mat Sto Rec Fac Ext Cet Arc Hub Fac Upp Upp War Pro Fac Arm Machines Accessed 66 | . 5 . 3 1 1 7 11 5 8 . 1 3 4 1 2 4 . 5 5 Terminals 39 | . 4 . 2 . 1 6 5 4 7 . . 2 3 . . . . 3 2 Fabricators 5 | . . . . . . . . . . . . . 1 . . . . 1 3 Repair Stations . | . . . . . . . . . . . . . . . . . . . . Recycling Units 11 | . 1 . 1 . . 1 6 1 1 . . . . . . . . . . Scanalyzers . | . . . . . . . . . . . . . . . . . . . . Garrison Access 2 | . . . . . . . . . . . . 1 . . . . . 1 . Total Hacks 247 | . 17 . 9 1 1 15 30 14 26 . 25 7 25 1 5 11 . 22 38 Successful 129 | . 6 . 6 1 . 7 15 7 10 . 25 2 8 1 5 11 . 10 15 Failed 118 | . 11 . 3 . 1 8 15 7 16 . . 5 17 . . . . 12 23 Catastrophic 27 | . 2 . . . 1 3 1 3 5 . . . 4 . . . . 3 5 Database Lockouts . | . . . . . . . . . . . . . . . . . . . . Manual 121 | . 16 . 9 . 1 7 12 10 15 . . 7 16 . . . . 13 15 Terminals 159 | . 15 . 8 . 1 14 15 11 23 . . 5 19 . . . . 20 28 Fabricators 17 | . . . . . . . . . . . . . 6 . . . . 1 10 Repair Stations . | . . . . . . . . . . . . . . . . . . . . Recycling Units 25 | . 2 . 1 . . 1 15 3 3 . . . . . . . . . . Scanalyzers . | . . . . . . . . . . . . . . . . . . . . Garrison Access 3 | . . . . . . . . . . . . 2 . . . . . 1 . Terminal Hacks 89 | . 5 . 5 1 . 4 5 3 9 . 25 . 4 1 5 11 . 6 5 Record 39 | . . . . . . . . . . . 25 . . . 4 10 . . . Part Schematic 5 | . 1 . . . . . 2 . 1 . . . . . . . . . 1 Robot Analysis 8 | . 3 . 3 . . . . . 2 . . . . . . . . . . Prototype ID Bank 9 | . 1 . 1 . . 1 3 1 2 . . . . . . . . . . Open Door 6 | . . . . 1 . 1 . 1 . . . . . 1 1 1 . . . Branch Access Points 6 | . . . 1 . . 1 . 1 . . . . 1 . . . . 1 1 Machine Index 1 | . . . . . . . . . . . . . . . . . . 1 . Terminal Index 2 | . . . . . . . . . . . . . 1 . . . . . 1 Alert Level 3 | . . . . . . . . . 2 . . . . . . . . 1 . Unreport Threat 6 | . . . . . . . . . 1 . . . 2 . . . . 3 . Patrol Status 1 | . . . . . . . . . 1 . . . . . . . . . . Recall Investigation 1 | . . . . . . . . . . . . . . . . . . . 1 Zone Layout 2 | . . . . . . 1 . . . . . . . . . . . . 1 Fabricator Hacks 5 | . . . . . . . . . . . . . 2 . . . . . 3 Load Schematic 3 | . . . . . . . . . . . . . 1 . . . . . 2 Build 2 | . . . . . . . . . . . . . 1 . . . . . 1 Repair Station Hacks . | . . . . . . . . . . . . . . . . . . . . Recycling Unit Hacks 7 | . . . . . . 1 5 1 . . . . . . . . . . . Retrieve Components 7 | . . . . . . 1 5 1 . . . . . . . . . . . Scanalyzer . | . . . . . . . . . . . . . . . . . . . . Garrison Access Hacks 1 | . . . . . . . . . . . . . . . . . . 1 . Seal Access 1 | . . . . . . . . . . . . . . . . . . 1 . Unauthorized Hacks 27 | . 1 . 1 . . 2 5 3 1 . . 2 2 . . . . 3 7 Terminals 14 | . . . . . . 2 1 1 1 . . 1 1 . . . . 2 5 Track 2 | . . . . . . . . . . . . . . . . . . . 2 Assimilate 2 | . . . . . . . . . . . . . 1 . . . . . 1 Botnet 7 | . . . . . . 2 1 1 1 . . . . . . . . 2 . Disrupt 2 | . . . . . . . . . . . . . . . . . . . 2 Sabotage 1 | . . . . . . . . . . . . 1 . . . . . . . Fabricators 4 | . . . . . . . . . . . . . 1 . . . . 1 2 Prioritize 2 | . . . . . . . . . . . . . 1 . . . . . 1 Overload 2 | . . . . . . . . . . . . . . . . . . 1 1 Repair Stations . | . . . . . . . . . . . . . . . . . . . . Recycling Units 8 | . 1 . 1 . . . 4 2 . . . . . . . . . . . Monitor 1 | . . . . . . . . 1 . . . . . . . . . . . Reject 1 | . . . . . . . . 1 . . . . . . . . . . . Tunnel 6 | . 1 . 1 . . . 4 . . . . . . . . . . . . Scanalyzers . | . . . . . . . . . . . . . . . . . . . . Garrison Access 1 | . . . . . . . . . . . . 1 . . . . . . . Jam 1 | . . . . . . . . . . . . 1 . . . . . . . Data Cores Recovered 1 | . . . . . . 1 . . . . . . . . . . . . . Used . | . . . . . . . . . . . . . . . . . . . . Hacking Detections 47 | . 4 . 2 . 1 8 9 3 8 . . 1 4 . . . . 3 4 Full Trace Events 4 | . . . . . . . 1 1 . . . . 1 . . . . . 1 Feedback Events . | . . . . . . . . . . . . . . . . . . . . Feedback Blocked . | . . . . . . . . . . . . . . . . . . . . Robot Schematics Acquired . | . . . . . . . . . . . . . . . . . . . . Robots Built . | . . . . . . . . . . . . . . . . . . . . Authchips . | . . . . . . . . . . . . . . . . . . . . Time . | . . . . . . . . . . . . . . . . . . . . Total Robot Build Rating . | . . . . . . . . . . . . . . . . . . . . Part Schematics Acquired 5 | . 1 . . . . . 2 . 1 . . . . . . . . . 1 Parts Built 4 | . . . . . . . . . . . . . 2 . . . . . 2 Authchips . | . . . . . . . . . . . . . . . . . . . . Time 92 | . . . . . . . . . . . . . 23 . . . . . 69 Total Part Build Rating 28 | . . . . . . . . . . . . . 10 . . . . . 18 Parts Repaired . | . . . . . . . . . . . . . . . . . . . . Time . | . . . . . . . . . . . . . . . . . . . . Parts Recycled . | . . . . . . . . . . . . . . . . . . . . Recycled Matter . | . . . . . . . . . . . . . . . . . . . . Retrieved Matter . | . . . . . . . . . . . . . . . . . . . . Retrieved Components 12 | . . . . . . 2 7 3 . . . . . . . . . . . Parts Scanalyzed . | . . . . . . . . . . . . . . . . . . . . Part Schematics Acquired . | . . . . . . . . . . . . . . . . . . . . Parts Damaged . | . . . . . . . . . . . . . . . . . . . . Bothacking | -11 -10 -10 -9 -9 -8 -8 -8 -6 -6 -6 -6 -6 -5 -5 -5 -5 -4 -4 -4 ------------ Run | Yrd Mat Min Mat Min Mat Sto Rec Fac Ext Cet Arc Hub Fac Upp Upp War Pro Fac Arm Used RIF Installer . | . . . . . . . . . . . . . . . . . . . . Robots Hacked . | . . . . . . . . . . . . . . . . . . . . Non-combat . | . . . . . . . . . . . . . . . . . . . . Combat . | . . . . . . . . . . . . . . . . . . . . Robot Hacks Applied . | . . . . . . . . . . . . . . . . . . . . Relay Couplers Released 2 | . . . . . . . . . . . . 2 . . . . . . . Machine Destruction 2 | . . . . . . . . . . . . 2 . . . . . . . Fabnet Peak Effective % . | . . . . . . . . . . . . . . . . . . . . Robots Rewired 17 | . . . . . . . 4 . 9 . . . . . . . . . 4 Allies Hacked . | . . . . . . . . . . . . . . . . . . . . Hacks Repelled . | . . . . . . . . . . . . . . . . . . . . Allies | -11 -10 -10 -9 -9 -8 -8 -8 -6 -6 -6 -6 -6 -5 -5 -5 -5 -4 -4 -4 -------- Run | Yrd Mat Min Mat Min Mat Sto Rec Fac Ext Cet Arc Hub Fac Upp Upp War Pro Fac Arm Total Allies 23 | . . . . 3 . . 4 . 11 . . . . . . . . . 5 Largest Group 6 | . . . . 3 3 2 4 4 6 6 . . . . . . . . 4 Highest-Rated Group 260 | . . . . 40 40 24 40 40 196 196 . . . . . . . . 260 Highest-Rated Ally 65 | . . . . 16 16 16 10 10 39 39 . . . . . . . . 65 Total Orders 4 | . . . . . . . . 3 . . . . . . . . . . 1 EXPLORE 3 | . . . . . . . . 2 . . . . . . . . . . 1 RETURN 1 | . . . . . . . . 1 . . . . . . . . . . . Ally Attacks 150 | . . . . . 7 10 5 2 85 41 . . . . . . . . . Total Damage 2370 | . . . . . 81 82 50 76 1467 614 . . . . . . . . . Kills 19 | . . . . . . 3 1 1 10 4 . . . . . . . . . Allies Corrupted . | . . . . . . . . . . . . . . . . . . . . Allies Melted . | . . . . . . . . . . . . . . . . . . . . Intel | -11 -10 -10 -9 -9 -8 -8 -8 -6 -6 -6 -6 -6 -5 -5 -5 -5 -4 -4 -4 ------- Run | Yrd Mat Min Mat Min Mat Sto Rec Fac Ext Cet Arc Hub Fac Upp Upp War Pro Fac Arm Robot Analysis Total 8 | . 3 . 3 . . . . . 2 . . . . . . . . . . Derelict Logs Recovered 8 | . . . . 1 . . . . . . . . . 2 2 . 3 . . Drone Launches 7 | . . . . . . . . 2 . . . . . . . . . . 5 Drone Recoveries 6 | . . . . . . . . 1 . . . . . . . . . . 5 Exploration | -11 -10 -10 -9 -9 -8 -8 -8 -6 -6 -6 -6 -6 -5 -5 -5 -5 -4 -4 -4 ------------- Run | Yrd Mat Min Mat Min Mat Sto Rec Fac Ext Cet Arc Hub Fac Upp Upp War Pro Fac Arm Turns Passed 19530 | 80 1345 284 705 1635 104 1018 3879 553 2074 826 229 306 839 1106 1005 653 1577 582 730 Spaces Moved 9431 | 62 458 128 208 614 33 293 860 471 575 184 56 159 485 1250 1017 615 979 450 534 Core 16 | 13 . . . . . . . . . . . . . . . . . . 3 Treads 1248 | . . 6 12 15 22 222 167 . . . 45 159 387 . . . 137 76 . Legs 3774 | 49 458 94 196 599 7 . . . 420 184 11 . 33 . 266 615 842 . . Wheels 845 | . . 28 . . 4 71 693 41 8 . . . . . . . . . . Hover 2990 | . . . . . . . . 430 147 . . . 65 1250 751 . . . 347 Flight 558 | . . . . . . . . . . . . . . . . . . 374 184 Fastest Speed 42 | 50 120 115 240 240 145 145 209 74 124 117 118 152 70 70 56 56 78 57 42 Average Speed 142 | 105 255 181 258 259 286 286 293 84 135 181 145 152 138 70 66 60 100 101 95 Slowest Speed 471 | 120 260 240 260 260 320 320 471 209 328 230 152 152 152 70 70 94 200 127 160 Overloaded Moves 321 | . . . . . . . . . . . . . . . . . . . 321 Propulsion Burnouts . | . . . . . . . . . . . . . . . . . . . . Robots Hopped . | . . . . . . . . . . . . . . . . . . . . Cave-ins Triggered . | . . . . . . . . . . . . . . . . . . . . Exploration Rate (%) 55 | 5 80 22 27 97 4 63 99 11 68 73 73 27 18 98 97 80 99 18 50 Regions Visited 19 Branch Regions 13 Pre-discovered Areas 14 | . 1 . 1 1 . . 4 . . . . . . . 1 4 2 . . Known Exits Taken 10 | . . . 1 . 1 1 . 1 . . . . 1 1 1 1 1 1 . Unknown Exits Taken 9 | 1 1 1 . 1 . . 1 . 1 1 1 1 . . . . . . . Scrap Searched 11 | . . . . 1 . . . . . . . . . 4 3 . 3 . . Spaces Dug 197 | . . 20 . . . 1 . . . . . 2 63 . 2 . 20 40 49 Terrain Destroyed 753 | . 16 77 . . . 22 2 3 36 17 . 24 71 38 20 4 125 121 177 Melee 11 | . . . . . . 1 . . . . . . . . . . . . 10 Projectile 272 | . . . . . . . 2 3 1 11 . 6 18 38 20 4 125 44 . AOE 470 | . 16 77 . . . 21 . . 35 6 . 18 53 . . . . 77 167 Terrain Rammed . | . . . . . . . . . . . . . . . . . . . . Walls Destroyed . | . . . . . . . . . . . . . . . . . . . . Machines Disabled . | . . . . . . . . . . . . . . . . . . . . Actions | -11 -10 -10 -9 -9 -8 -8 -8 -6 -6 -6 -6 -6 -5 -5 -5 -5 -4 -4 -4 --------- Run | Yrd Mat Min Mat Min Mat Sto Rec Fac Ext Cet Arc Hub Fac Upp Upp War Pro Fac Arm Total 14757 | 73 554 155 312 654 40 399 2081 614 1748 622 204 197 625 1461 1331 896 1533 544 714 Wait 3932 | . 13 6 28 19 . 30 1011 69 901 360 141 6 72 156 290 217 506 40 67 Move 9412 | 61 457 127 207 613 32 292 859 470 574 183 55 158 484 1249 1016 614 978 449 534 Hop . | . . . . . . . . . . . . . . . . . . . . Pick Up 229 | 6 20 . 18 3 3 13 19 22 38 19 2 1 13 12 2 21 . 7 10 Fast Attach 37 | 6 4 . 2 4 . 2 2 4 1 3 . . 1 1 . 2 . . 5 Attach 78 | . 1 6 8 . . 7 3 7 13 3 1 . 4 . . 2 . 6 17 Detach 14 | . . . . . . . 3 2 5 . . . . . . . . . 4 Swap 137 | . 5 5 8 6 5 11 2 6 12 3 1 6 15 7 8 8 8 8 13 Drop 216 | . 11 . 7 8 . 10 32 22 34 22 3 1 12 13 2 24 1 4 10 Fire 410 | . 39 10 34 . . 32 45 9 52 21 1 12 23 23 13 8 40 30 18 Melee 80 | . . . . . . 1 56 3 . . . . . . . . . . 20 Ram 4 | . . . . . . . 1 . . . . . . . . . . . 3 Kick 6 | . 4 . . 1 . . . . 1 . . . . . . . . . . Crush 13 | . . 1 . . . 1 . . . . . 10 1 . . . . . . Escape Stasis 13 | . . . . . . . . . 13 . . . . . . . . . . Rewire 149 | . . . . . . . 48 . 88 . . . . . . . . . 13 Trap . | . . . . . . . . . . . . . . . . . . . . Miscellaneous 27 | . . . . . . . . . 16 8 . 3 . . . . . . . Route ------- -11/Scrapyard -10/Materials (discovered 3 exits: *Mat x2 / [*Min]) -10/Mines -9/Materials -9/Mines (discovered 2 exits: *Mat x2) -8/Materials -8/Storage -8/Recycling -6/Factory (discovered 4 exits: Low x2 / *Ext x2) -6/Extension (discovered 2 exits: *Fac / *Cet) -6/Cetus (discovered 2 exits: *Fac / *Arc) -6/Archives -6/Hub_04(d) -5/Factory (discovered 2 exits: *Upp x2) -5/Upper Caves -5/Upper Caves (discovered 2 exits: *Fac / *War) -5/Warlord -4/Proximity Caves -4/Factory (discovered 5 exits: Res x2 / Upp x2 / *Arm) -4/Armory (discovered 1 exit: Res) History --------- Turn | Location | Event 3 | -11/Scrapyard | Discovered new exit (range 15) 81 | -11/Scrapyard | Entered Materials 310 | -10/Materials | Build established: Mutant 567 | -10/Materials | Discovered new exit (range 13) 806 | -10/Materials | Discovered new exit (range 8) 1390 | -10/Materials | Discovered new exit (range 12) 1426 | -10/Materials | Entered Mines 1537 | -10/Mines | Discovered new exit (range 4) 1606 | -10/Mines | Assembled infested the area 1611 | -10/Mines | Assisted by a Guerilla fighting off Assembled 1618 | -10/Mines | Core integrity fell below 50% 1663 | -10/Mines | Core integrity fell below 20% 1667 | -10/Mines | Lost 5 parts (1p1n1u2w) 1710 | -10/Mines | Entered Materials 1710 | -9/Materials | Evolved 2 slots: Utility x2 1786 | -9/Materials | Lost 3 parts (1p2n) 1818 | -9/Materials | Identified exit to Mines 2415 | -9/Materials | Entered Mines 2429 | -9/Mines | Found the Drone Emporium 2441 | -9/Mines | Found Prototype Device 2441 | -9/Mines | Identified Decoy Drone Bay 2505 | -9/Mines | Received a Rocket Launcher from a helpful Derelict 2591 | -9/Mines | Learned 4 Materials zone layouts 2682 | -9/Mines | Discovered new exit (range 8) 2746 | -9/Mines | Build established: Scavenger-Mutant 2983 | -9/Mines | A weapon hastily lodged in a ceiling crevice suddenly fell to the ground 3027 | -9/Mines | Discovered new exit (range 10) 3165 | -9/Mines | Assisted by bots powering up and referring to "LRC-V3" 3189 | -9/Mines | Learned location of Storage (-8) 4050 | -9/Mines | Entered Materials 4050 | -8/Materials | Accompanied by 3 allies 4050 | -8/Materials | Evolved 2 slots: Weapon x2 4050 | -8/Materials | Discovered new exit (range 6) 4051 | -8/Materials | Identified exit to Storage 4154 | -8/Materials | Entered Storage 4154 | -8/Storage | Accompanied by 2 allies 4253 | -8/Storage | Identified exit to Recycling 4434 | -8/Storage | Build established: Scavenger-Tank 5160 | -8/Storage | Used back door to open Recycling access 5172 | -8/Storage | Entered Recycling 5173 | -8/Recycling | Found Scrap Engine 5530 | -8/Recycling | Build established: Gunner 6313 | -8/Recycling | Build established: Construct 6693 | -8/Recycling | Discovered new exit (range 16) 9017 | -8/Recycling | Build established: Commander-Construct 9051 | -8/Recycling | Entered Factory 9051 | -6/Factory | Accompanied by 4 allies 9051 | -6/Factory | Evolved 4 slots: Propulsion x4 9310 | -6/Factory | Identified exit to Lower Caves 9310 | -6/Factory | Identified exit to Extension 9401 | -6/Factory | Search patrols dispatched 9546 | -6/Factory | Build established: Construct 9604 | -6/Factory | Entered Extension 9604 | -6/Extension | Accompanied by 2 allies 9686 | -6/Extension | Rescued a captive Derelict 9929 | -6/Extension | Disrupted transfer network 10031 | -6/Extension | Rescued a captive Derelict 10060 | -6/Extension | Energy Cycler disabled 10060 | -6/Extension | Rescued a captive Derelict 10060 | -6/Extension | Rescued a captive Derelict 10063 | -6/Extension | Rescued a captive Derelict 10066 | -6/Extension | Rescued a captive Derelict 10067 | -6/Extension | Rescued a captive Derelict 10101 | -6/Extension | Lost 4 allies 10616 | -6/Extension | Spotted B-75 Beast 10617 | -6/Extension | Extracted ID and sensor layout for unrecognized location from A7's data core 11575 | -6/Extension | Build established: Commander-Construct 11598 | -6/Extension | Discovered new exit (range 10) 11600 | -6/Extension | Discovered new exit (range 6) 11678 | -6/Extension | Entered Cetus 11678 | -6/Cetus | Accompanied by 6 allies 11705 | -6/Cetus | Spotted Cetus Guard 11705 | -6/Cetus | Spotted Cetus Guard 11710 | -6/Cetus | Spotted Cetus Guard 11715 | -6/Cetus | Spotted Cetus Guard 11718 | -6/Cetus | Allies destroyed Cetus Guard 11719 | -6/Cetus | Destroyed Cetus Guard 11723 | -6/Cetus | Destroyed Cetus Guard 11727 | -6/Cetus | Allies destroyed Cetus Guard 11754 | -6/Cetus | Lost 3 allies 11905 | -6/Cetus | Discovered new exit (range 16) 11952 | -6/Cetus | Spotted Cetus Guard 11953 | -6/Cetus | Spotted Cetus Guard 11956 | -6/Cetus | Spotted Cetus Guard 11958 | -6/Cetus | Spotted Cetus Guard 11959 | -6/Cetus | Destroyed Cetus Guard 11969 | -6/Cetus | Destroyed Cetus Guard 11975 | -6/Cetus | Destroyed Cetus Guard 11981 | -6/Cetus | Destroyed Cetus Guard 12011 | -6/Cetus | Lost 3 allies 12027 | -6/Cetus | Build established: Construct 12301 | -6/Cetus | Discovered new exit (range 15) 12418 | -6/Cetus | Met Revision 17 12504 | -6/Cetus | Entered Archives 12691 | -6/Archives | Met Zhirov 12697 | -6/Archives | Reinforcements dispatched to Archives 12708 | -6/Archives | Read partially decrypted archive contents 12711 | -6/Archives | Discovered new exit (range 15) 12733 | -6/Archives | Entered Hub_04(d) 12821 | -6/Hub_04(d) | Network Hub disabled 12948 | -6/Hub_04(d) | Network Hub disabled 12952 | -6/Hub_04(d) | Network Hub disabled 12997 | -6/Hub_04(d) | Spotted Lightning 12997 | -6/Hub_04(d) | Spotted Lightning 12997 | -6/Hub_04(d) | Spotted Lightning 13004 | -6/Hub_04(d) | Network Hub disabled 13009 | -6/Hub_04(d) | Network Hub disabled 13010 | -6/Hub_04(d) | System corruption reached 10% 13024 | -6/Hub_04(d) | Core integrity fell below 50% 13025 | -6/Hub_04(d) | Discovered new exit (range 9) 13039 | -6/Hub_04(d) | Entered Factory 13039 | -5/Factory | Evolved 2 slots: Utility x2 13289 | -5/Factory | Fabricated Weapon Mount (x2) 13592 | -5/Factory | Identified exit to Upper Caves 13878 | -5/Factory | Entered Upper Caves 14108 | -5/Upper Caves | Learned Factory stockpile data 14313 | -5/Upper Caves | Found Imp. Powered Armor 14395 | -5/Upper Caves | Learned Factory stockpile data 14834 | -5/Upper Caves | Discovered new exit (range 10) 14840 | -5/Upper Caves | Identified exit to Upper Caves 14888 | -5/Upper Caves | Spotted B-75 Beast 14893 | -5/Upper Caves | Destroyed B-75 Beast 14984 | -5/Upper Caves | Entered another Upper Caves area 15014 | -5/Upper Caves | Discovered new exit (range 7) 15043 | -5/Upper Caves | Identified exit to Factory 15456 | -5/Upper Caves | Learned 4 Factory zone layouts 15628 | -5/Upper Caves | Learned 8 Factory zone layouts 15628 | -5/Upper Caves | Learned Armory trap positions 15943 | -5/Upper Caves | Discovered new exit (range 7) 15946 | -5/Upper Caves | Identified exit to Warlord 15989 | -5/Upper Caves | Entered Warlord 16011 | -5/Warlord | Discovered new exit (range 14) 16067 | -5/Warlord | Learned location of Command (-1) 16067 | -5/Warlord | Learned Armory trap positions 16067 | -5/Warlord | Learned Research trap positions 16067 | -5/Warlord | Learned Armory stockpile data 16068 | -5/Warlord | Learned 4 Access zone layouts 16068 | -5/Warlord | Learned 4 Command zone layouts 16068 | -5/Warlord | Learned Research garrison access intel 16146 | -5/Warlord | Visited the Vortex Lab 16155 | -5/Warlord | Found Prototype Energy Gun 16156 | -5/Warlord | Found Prototype Energy Gun 16160 | -5/Warlord | Found Prototype Launcher 16163 | -5/Warlord | Found Prototype Piercing Weapon 16165 | -5/Warlord | Found Prototype Piercing Weapon 16167 | -5/Warlord | Warlord's base attacked by MAIN.C 16228 | -5/Warlord | Met Warlord 16240 | -5/Warlord | Identified Vortex Catalyst Activator 16247 | -5/Warlord | Found Prototype Hackware 16250 | -5/Warlord | Found Prototype Device 16253 | -5/Warlord | Identified Ghost Barrier 16256 | -5/Warlord | Found Prototype Device 16269 | -5/Warlord | Found Prototype Reactor 16278 | -5/Warlord | Identified Vortex Chain Reactor 16437 | -5/Warlord | Identified Exp. Phase Shifter 16445 | -5/Warlord | Identified Thermal Barrier 16517 | -5/Warlord | Warlord forces counterattacked 16523 | -5/Warlord | Spotted B-75 Beast 16572 | -5/Warlord | Lost 5 allies 16575 | -5/Warlord | Identified Vortex Lance (x2) 16584 | -5/Warlord | Spotted Executioner 16590 | -5/Warlord | Spotted Executioner 16630 | -5/Warlord | Lost 10 allies 16630 | -5/Warlord | Identified exit to Proximity Caves 16642 | -5/Warlord | Entered Proximity Caves 16644 | -4/Proximity Caves | Attracted the attention of an 0b10 checkpoint 16813 | -4/Proximity Caves | Identified Vortex Shotgun (x2) 16866 | -4/Proximity Caves | Spotted B-86 Titan 16901 | -4/Proximity Caves | Destroyed B-86 Titan 17138 | -4/Proximity Caves | Learned location of Armory (-4) 18219 | -4/Proximity Caves | Entered Factory 18219 | -4/Factory | Evolved 2 slots: Utility x2 18220 | -4/Factory | Identified exit to Research 18220 | -4/Factory | Identified exit to Upper Caves 18552 | -4/Factory | Found Quantum Capacitor 18576 | -4/Factory | Identified exit to Armory 18764 | -4/Factory | Destroyed 7 combat bots 18766 | -4/Factory | Spotted B-86 Titan 18801 | -4/Factory | Entered Armory 18802 | -4/Armory | Loaded intel: 51 trap records 18831 | -4/Armory | Lost 3 parts (1p1n1u) 19051 | -4/Armory | Search patrols dispatched 19173 | -4/Armory | Fabricated Cmb. Linear Gravjet (x2) 19375 | -4/Armory | Discovered exit to Research (range 14) 19407 | -4/Armory | Destroyed 16 combat bots 19412 | -4/Armory | Lost 4 allies 19414 | -4/Armory | Spotted B-86 Titan 19421 | -4/Armory | Core integrity fell below 50% 19520 | -4/Armory | Lost 15 parts (1p2n7u5w) 19523 | -4/Armory | Core integrity fell below 20% 19531 | -4/Armory | Destroyed by G-67 Veteran with Field Laser Last Messages --------------- 19525_ E-15 Imp destroyed. 19525_ Impulse Thruster Array destroyed. 19525_ Hovering Biometal-Impulse Exoskeleton destroyed. 19525_ Hovering Biometal-Impulse Exoskeleton core remains intact and functional. 19526_ Huge Storage Unit destroyed. 19527_ Connecting with Fabricator... >>Force(Overload) EM_IMPRINTER_OVERLOAD 19527_ ALERT: Suspicious activity at Fabricator A001. Dispatching Investigation squad. 19527_ Fabricator disabled. 19528_ Dropped Imp. Heat Sink. 19528_ Acquired Vortex Lance. 19529_ Slug penetrates Wall. 19529_ Slug penetrates Fabricator. 19530_ Hovering Biometal-Impulse Exoskeleton destroyed. 19531_ Door malfunctions. Map ----- +----------------------------------------------------+ | | | ??????????????????????????????????? | | ??????????????????????????????????? | | ??????????????????????????????????? | | ??????????????????????????????##### | | ?????????????????????????????? | | ?????????????????????????????? | | ?????????????????????????????? | | ??????????????????????????????? | | ??????????????????????????????????# | | ??????????????????????????????????# | | ??????????????????????????????????# | | ??????????????????????????????????# | | ??????????????????????????????????# | | ????????#?????????????????????????# | | ???????? ???????????????????????### | | ???????? ???????????????????????# | | ???????? ????????##########????# | | ????????# ????????# ????# | | ????????# ????????# ????# | | ????###?# ???###### ????# = | | ????? # ???#""""# ????# = | | ??????" # ####"F "# s ?????# = | | ??????? / ^ != s#?????## | | ????????# ^ ! ^^!= s#######" | | ????????# @ ^^|| x # ### | | ????????# ^!!^|| x #!"""" #?? | | ????????# ^!^!^| s g #!!% #?? | | ??=?????#""!=!ss x h //%=! #?? | | ????????#" *!!%l p ###!"""" #?? | | ????????#""" #?#= ? #?? | | ????????#"""! #?########?? | | ????????# #??????????? | | ????????# ??????? | | ????????# ###### ???? | | ????????+ ?????# ##############??? | | ????????# ?????# #???????????????? | | ????????# ?????# #???????????????? | | ????????#??????# #???????????????? | | ???????????????# #???????????????? | | ???????????????# +???????????????? | | ???????????????# #???????????????? | | ???????????????# #???????????????? | | ???????????????# #???????????????? | | ???????????????# #???????????????? | | ???????????????# ????????????????? | | ???????????????? ????????????????? | | ??????????????????????????????????? | | ??????????????????????????????????? | | ??????????????????????????????????? | +----------------------------------------------------+ Best States ------------- Heat Dissipation 59 Coolant Potential 80 Energy Generation 26 Energy Capacity 372 Matter Stores 300 Matter Capacity 300 Sight Range 16 Robot Scan Range 18 Terrain Scan Range 20 Terrain Scan Density 135 Armor Coverage 675 Weapon Shielding 33 Phase Shifting 20 Evasion (%) 63 Targeting Accuracy 28 Recoil Reduction 6 Offensive Hacking 10 Defensive Hacking 20 Item Schematics ----------------- Cargo Storage Unit | -10/Materials | Hacked Flak Gun | -8/Recycling | Hacked Adv. Terrain Scan Processor | -8/Recycling | Hacked Weapon Mount | -6/Extension | Hacked Cmb. Linear Gravjet | -4/Armory | Hacked Robot Schematics ------------------ None Fabricated ------------ Weapon Mount | x2 | -5/Factory Cmb. Linear Gravjet | x2 | -4/Armory Alien Tech Used ----------------- None Achievements -------------- None Challenges ------------ None Game ------ Seed BiocellSapperAxe Manual? 0 Play Time 03:16:45 Cumulative 339.5 hours Start 2024.05.09 @ 03:28:31 End 2024.05.09 @ 06:57:15 Sessions 3 Manual Loads 0 Difficulty Rogue Special Mode None Game No. 89 Rogue 89 Adventurer 0 Explorer 0 Win Type - Total 18 Types 8/3/4/1/1/0/1/0/0 Lore% 59 Gallery% 81 Achievement% 71 Wizard Run 0 Options --------- Layout 1 ASCII 0 Keyboard 0 Movement Numpad Keybinds 0 Fullscreen 1 Font 24/Smallcaps Map View 50x35 Zoom Use 15% Tactical HUD 1 Map Filters NONE Filters NONE Steam 1 RUN: ec7d5c0e-75ec-4272-8f38-6f0dfc1d502a